bitfinex/quotes_ETHUSD_20251017
["timestamp","ask_amount","ask_price","bid_price","bid_amount"]
[1760679626282,0.40077113,3915.0,3914.4,2.55463823]
[1760679626487,0.40077113,3915.0,3914.0,0.434]
[1760679626488,0.822,3914.9,3914.1,2.55486574]
[1760679626727,0.822,3914.9,3914.3,2.55472931]
[1760679627097,0.822,3914.9,3914.0,0.434]
[1760679627293,1.0452,3914.9,3914.1,2.55486574]
[1760679627510,1.0452,3914.9,3914.3,2.55470702]
[1760679627706,1.07074097,3914.9,3913.5,0.434]
[1760679627915,1.07074097,3914.9,3913.9,2.55499197]
[1760679628087,1.28765218,3914.9,3913.9,2.55499197]
[1760679628719,1.28765218,3914.9,3914.1,2.55485752]
[1760679629016,1.28765218,3914.9,3914.0,2.55492222]
[1760679629182,1.28765218,3914.9,3913.5,0.434]
[1760679629383,7.037984,3914.8,3913.4,0.6336]
[1760679629642,0.02554097,3914.7,3913.3,0.6011]
[1760679629822,0.02554097,3914.7,3913.8,2.55504379]
[1760679629997,0.42633591,3914.7,3913.8,2.55504379]
[1760679630195,0.42633591,3914.7,3914.0,2.55492234]
[1760679630399,2.63,3914.6,3914.1,0.02554865]
[1760679630716,2.63,3914.6,3914.1,2.55480501]
[1760679630882,0.2232,3914.9,3913.8,0.6336]
[1760679631082,2.629,3914.8,3914.0,2.55489994]
[1760679631289,2.629,3914.7,3914.4,2.55461437]
[1760679632186,2.629,3914.7,3914.6,2.55453941]
[1760679632582,2.629,3914.7,3914.2,2.55475735]
[1760679632815,2.629,3914.7,3913.9,0.434]
[1760679633547,2.629,3914.7,3913.6,3.18879215]
[1760679633706,0.02554097,3914.6,3913.3,1.8951]
[1760679633911,0.4645,3914.5,3913.5,1.728]
[1760679634113,0.1272,3913.8,3913.7,2.55511816]
[1760679634411,0.1272,3913.8,3913.6,2.55512806]
[1760679634662,0.1272,3913.8,3913.4,2.55526931]
[1760679634833,0.1272,3913.8,3913.7,2.55512686]
[1760679635844,0.1272,3913.8,3913.3,0.1671]
[1760679636007,2.628,3914.0,3913.6,2.55513251]
[1760679636207,2.628,3914.0,3913.5,2.55523905]
[1760679636542,2.628,3914.0,3913.8,2.55502588]
[1760679636740,2.628,3914.0,3913.6,2.55518518]
[1760679636741,2.628,3914.0,3913.9,2.55499629]
[1760679636941,2.628,3914.0,3913.7,2.555063]
[1760679637111,0.1272,3913.6,3913.3,0.1671]
[1760679637307,0.1272,3913.6,3913.5,2.55525744]
[1760679637523,0.1272,3913.6,3913.5,2.98925744]
[1760679639912,0.1272,3913.6,3913.5,2.55525744]
[1760679640818,0.1272,3913.6,3913.5,2.98925744]
[1760679641363,0.2232,3914.9,3914.1,2.55486574]
[1760679641364,2.625,3914.2,3914.1,2.55486574]
[1760679641529,2.625,3914.2,3914.1,2.54486574]
[1760679641736,0.02554097,3914.8,3913.5,0.434]
[1760679641737,0.1272,3914.1,3913.5,0.6336]
[1760679642078,0.1272,3914.3,3913.7,0.6336]
[1760679642243,0.2232,3913.8,3913.1,2.55650054]
[1760679642452,2.625,3913.7,3913.4,2.55531337]
[1760679642642,2.625,3913.7,3913.2,2.72254723]
[1760679642841,2.627,3913.9,3913.3,0.434]
[1760679643267,2.627,3913.9,3913.6,2.55518052]
[1760679643684,2.627,3913.9,3913.4,2.55528148]
[1760679643974,0.4645,3913.8,3913.3,2.55536693]
[1760679644137,0.4645,3913.8,3913.2,0.1671]
[1760679644339,0.4645,3913.8,3913.2,2.72255012]
[1760679645165,0.4645,3913.8,3913.4,2.55526678]
[1760679645366,2.627,3913.9,3913.2,0.1671]
[1760679645560,2.627,3913.9,3913.6,2.55512729]
[1760679646141,2.627,3913.9,3913.7,2.55511997]
[1760679646342,2.627,3913.9,3913.2,0.1671]
[1760679646343,2.627,3913.9,3913.8,2.55506157]
[1760679646843,0.40081684,3914.0,3913.2,0.6011]
[1760679647073,2.8492,3913.9,3913.2,0.1671]
[1760679647267,2.8492,3913.9,3913.1,0.001]
[1760679647268,0.02554097,3913.8,3913.1,0.001]
[1760679647775,0.02554097,3913.8,3913.1,2.5564647]
[1760679648071,0.02554097,3913.8,3913.1,0.001]
[1760679648286,0.02554097,3913.8,3913.2,2.55544519]
[1760679648487,0.43669192,3913.8,3913.1,0.001]
[1760679648638,0.41115095,3913.8,3913.3,2.55534072]
[1760679649041,0.41115095,3913.8,3913.4,2.55530909]
[1760679649662,2.624,3913.7,3913.2,2.55538815]
[1760679649971,2.624,3913.7,3913.4,2.5553133]
[1760679650187,2.624,3913.7,3913.5,2.55523536]
[1760679650673,2.624,3913.7,3913.4,2.55531068]
[1760679650880,2.624,3913.7,3913.5,2.55525238]
[1760679651076,0.40081684,3914.0,3913.1,0.6021]
[1760679651287,0.40081684,3914.0,3913.9,2.55499629]
[1760679651454,2.624,3914.0,3913.9,2.55499629]
[1760679651777,0.4645,3914.8,3913.6,0.434]
[1760679651778,0.4645,3914.8,3913.6,2.98917559]
[1760679651943,2.624,3914.7,3914.2,2.55474154]
[1760679652147,0.4299,3914.6,3914.2,2.55474154]
[1760679652560,0.4299,3914.6,3913.6,2.98917559]
[1760679652561,0.1272,3914.2,3914.1,2.55486574]
[1760679652763,0.1272,3914.2,3914.1,2.99566574]
[1760679653048,0.1272,3914.2,3914.1,2.55486574]
[1760679659722,0.002,3915.0,3914.9,2.55434366]
[1760679659894,0.002,3915.0,3913.7,0.1272]
[1760679659895,0.1272,3914.5,3913.7,0.1272]
[1760679660095,0.1272,3914.5,3914.4,2.55466993]
[1760679661270,0.1292,3915.0,3914.9,2.55434366]
[1760679664775,0.002,3915.0,3914.9,3.62154366]
[1760679665781,0.002,3915.0,3914.9,3.18794366]
[1760679665975,0.002,3915.0,3914.9,3.62154366]
[1760679666381,0.002,3915.0,3914.9,3.18794366]
[1760679666807,0.002,3915.0,3914.9,3.64708709]
[1760679667014,0.002,3915.0,3914.9,3.62154366]
[1760679668414,0.002,3915.0,3914.9,3.18794366]
[1760679670206,0.002,3915.0,3914.9,2.55434366]
[1760679673700,0.002,3915.0,3914.9,2.57988709]
[1760679673904,0.002,3915.0,3914.9,3.62154366]
[1760679674237,0.002,3915.0,3914.9,3.18794366]
[1760679675643,0.002,3915.0,3914.9,3.43154666]
[1760679675855,0.002,3915.0,3914.9,2.99794666]
[1760679680544,0.002,3915.0,3914.9,3.43154666]
[1760679680744,0.002,3915.0,3914.9,2.99794666]
[1760679684347,0.002,3915.0,3914.9,2.36434666]
[1760679684348,0.4708,3915.0,3914.9,2.36434666]
[1760679685270,0.002,3915.0,3914.9,2.36434666]
[1760679687058,0.002,3915.0,3914.9,2.36634666]
[1760679687463,0.002,3915.0,3914.9,2.39189009]
[1760679689174,0.002,3915.0,3914.9,3.02549009]
[1760679689502,0.002,3915.0,3914.9,2.99994666]
[1760679691548,0.002,3915.0,3914.9,2.36634666]
[1760679691882,0.4708,3915.0,3914.9,2.36634666]
[1760679692196,0.598,3915.0,3914.9,2.36634666]
[1760679693555,0.1292,3915.0,3914.9,2.36634666]
[1760679695785,0.598,3915.0,3914.9,2.36634666]
[1760679696153,0.1292,3915.0,3914.9,2.36634666]
[1760679697452,0.598,3915.0,3914.9,0.002]
[1760679700257,0.9189,3915.0,3914.9,0.002]
[1760679700873,0.9189,3915.0,3914.9,2.55634366]
[1760679701103,0.002,3915.0,3914.9,3.18994366]
[1760679701295,0.002,3915.0,3914.9,3.21548709]
[1760679701594,0.002,3915.0,3914.9,3.18994366]
[1760679708748,0.4708,3915.0,3914.9,0.002]
[1760679710924,0.4708,3915.0,3914.9,2.55634366]
[1760679711121,0.4708,3915.0,3914.9,0.002]
[1760679713256,0.77868,3915.0,3914.9,0.002]
[1760679713653,0.77868,3915.0,3914.9,2.55634366]
[1760679713953,0.77868,3915.0,3914.9,0.002]
[1760679714334,0.77868,3915.0,3914.9,2.55634366]
[1760679714833,0.30988,3915.0,3914.9,2.55634366]
[1760679715027,0.002,3915.0,3914.9,2.55634366]
[1760679715232,0.4765,3915.0,3914.9,2.55634366]
[1760679715640,2.608,3915.0,3914.9,2.55634366]
[1760679716250,3.0825,3915.0,3914.9,2.55634366]
[1760679718147,3.0825,3915.0,3914.9,0.002]
[1760679721466,3.0825,3915.0,3914.9,2.55634366]
[1760679721977,3.4832081,3915.0,3914.9,2.55634366]
[1760679724470,0.8772081,3915.0,3914.9,2.55634366]
[1760679724674,2.7322,3915.0,3914.9,2.98824366]
[1760679724975,0.002,3915.0,3914.9,2.55634366]
[1760679726077,0.002,3915.0,3914.9,2.98824366]
[1760679726876,0.002,3915.0,3914.9,3.62184366]
[1760679733256,0.002,3915.0,3914.9,3.18994366]
[1760679733992,0.002,3915.0,3914.9,2.55634366]
[1760679734351,5.16993996,3915.0,3914.9,2.55634366]
[1760679734867,5.16993996,3915.0,3914.9,0.002]
[1760679737098,0.002,3915.0,3914.9,2.58188709]
[1760679737297,0.002,3915.0,3914.9,3.62184366]
[1760679737606,0.002,3915.0,3914.9,3.31714366]
[1760679738097,0.002,3915.0,3914.9,2.68354366]
[1760679738279,0.002,3915.0,3914.9,2.55634366]
[1760679742197,0.6037,3915.0,3914.9,4.28434366]
[1760679742994,0.1292,3915.0,3914.9,4.28434366]
[1760679744302,5.31068293,3915.0,3914.9,2.55634366]
[1760679749283,7.90768293,3915.0,3914.9,2.55634366]
[1760679749608,8.57125122,3915.0,3914.9,0.002]
[1760679749808,35.60513556,3915.0,3914.9,0.002]
[1760679750008,33.54641356,3915.0,3914.9,0.002]
[1760679750215,29.24018532,3915.0,3914.9,0.002]
[1760679750393,33.94716825,3915.0,3914.9,0.002]
[1760679750782,39.53657225,3915.0,3914.9,0.002]
[1760679751012,2.55450445,3914.7,3914.5,0.002]
[1760679751178,24.14646828,3914.6,3914.5,0.002]
[1760679751384,27.14996672,3914.6,3914.5,0.002]
[1760679751583,25.466747,3914.4,3914.1,0.002]
[1760679751911,14.85791631,3914.6,3914.1,0.002]
[1760679751912,20.4258104,3914.2,3914.1,0.002]
[1760679752111,17.7183074,3914.2,3914.1,0.002]
[1760679752311,20.01208814,3914.2,3914.1,0.002]
[1760679752483,20.01208814,3914.2,3912.3,2.55602543]
[1760679752484,2.55507369,3913.8,3912.3,2.55602543]
[1760679752678,2.55507369,3913.8,3912.2,0.1671]
[1760679752679,4.70698293,3912.8,3912.4,2.55597587]
[1760679752889,4.70698293,3912.5,3912.1,0.85819677]
[1760679753092,0.2162,3912.9,3912.3,2.5560412]
[1760679753093,2.597,3912.4,3912.3,2.5560412]
[1760679753588,2.597,3912.4,3912.1,0.85819677]
[1760679753589,7.77848293,3912.4,3912.1,0.85819677]
[1760679753796,0.4745,3912.3,3912.1,0.85819677]
[1760679754412,7.30398293,3912.4,3912.2,2.5561016]
[1760679754599,7.30398293,3912.4,3912.1,0.85819677]
[1760679754806,0.02554097,3912.3,3912.1,0.85819677]
[1760679755016,0.02554097,3912.3,3912.1,3.41435105]
[1760679755312,0.50004097,3912.3,3912.1,0.85819677]
[1760679755490,0.4745,3912.2,3912.1,0.86019677]
[1760679755693,1.25490239,3912.2,3912.1,0.86019677]
[1760679756386,1.75354097,3912.3,3912.1,0.86019677]
[1760679756715,0.4745,3912.2,3912.1,0.86019677]
[1760679757805,1.75354097,3912.3,3912.1,0.86019677]
[1760679758512,1.728,3912.3,3912.1,3.41636291]
[1760679759318,1.75354097,3912.3,3912.2,2.55610653]
[1760679759493,1.75354097,3912.3,3912.1,0.86019677]
[1760679759685,3.13379336,3912.3,3912.1,0.86019677]
[1760679759895,0.4745,3912.2,3912.1,0.86019677]
[1760679761699,2.65929336,3912.3,3912.1,0.86019677]
[1760679762390,0.40099221,3913.4,3913.3,2.55538803]
[1760679762585,0.40099221,3913.4,3913.3,3.63808803]
[1760679762819,0.40099221,3913.4,3913.3,4.40778967]
[1760679763203,0.8,3914.1,3914.0,2.55493101]
[1760679763395,2.604,3914.9,3914.0,0.98564526]
[1760679763592,2.604,3914.9,3914.8,2.5544089]
[1760679763817,2.604,3914.9,3914.8,3.0035089]
[1760679764314,0.002,3915.0,3914.9,2.55434366]
[1760679764623,0.002,3915.0,3914.7,2.5544664]
[1760679764624,7.31298293,3915.0,3914.7,2.5544664]
[1760679764825,7.31298293,3915.0,3914.0,0.4491]
[1760679765220,7.31298293,3915.0,3914.6,2.55447726]
[1760679765422,0.2162,3914.9,3914.4,2.55461577]
[1760679765627,0.2162,3914.9,3914.4,2.55464983]
[1760679765801,0.2162,3914.9,3913.6,0.4491]
[1760679766002,0.2162,3914.9,3913.2,5.32655011]
[1760679766003,1.728,3914.7,3913.2,0.6162]
[1760679766203,6.526939,3914.5,3913.2,0.1671]
[1760679766410,1.728,3914.1,3913.3,2.55532815]
[1760679766592,1.728,3913.9,3913.3,2.55538803]
[1760679766797,1.9442,3913.9,3913.5,2.55525721]
[1760679767331,1.9442,3913.9,3913.2,2.55542389]
[1760679767495,1.9442,3913.9,3913.3,2.55538052]
[1760679767696,0.45482,3913.8,3913.3,2.55538052]
[1760679767901,0.45482,3913.8,3913.1,2.55550224]
[1760679768103,2.371435,3913.7,3913.0,2.55558333]
[1760679768308,0.45482,3913.8,3912.9,2.5556477]
[1760679768309,14.652793,3913.5,3912.9,2.5556477]
[1760679768655,2.604,3913.6,3913.1,2.55551404]
[1760679768932,0.305882,3913.5,3912.7,2.55574789]
[1760679769130,0.305882,3913.5,3912.9,2.55564779]
[1760679770024,0.305882,3913.5,3913.0,2.5555826]
[1760679770430,0.305882,3913.5,3912.2,0.1671]
[1760679770604,0.305882,3913.5,3912.2,0.6162]
[1760679770605,2.96322,3913.4,3912.2,0.6162]
[1760679770804,2.96322,3913.4,3912.3,0.4032633]
[1760679770805,1.728,3913.3,3912.3,0.4032633]
[1760679771000,2.603,3913.2,3912.4,2.55597236]
[1760679771205,2.603,3913.2,3912.1,3.41635342]
[1760679771206,2.980655,3913.1,3912.2,2.55604271]
[1760679771412,2.980655,3913.1,3912.1,0.86019677]
[1760679771611,3.280679,3912.9,3912.2,2.5561019]
[1760679771814,1.728,3912.7,3912.2,2.5561019]
[1760679772010,1.728,3912.7,3912.1,0.86019677]
[1760679772011,2.603,3912.6,3912.3,2.55602033]
[1760679772226,2.603,3912.6,3912.1,3.41630735]
[1760679772427,2.603,3912.6,3912.1,0.86019677]
[1760679772628,3.06740679,3912.5,3912.1,0.86019677]
[1760679772831,3.291114,3912.5,3912.1,0.86019677]
[1760679774332,2.603,3912.6,3912.1,3.41635054]
[1760679774930,0.4009661,3912.5,3912.3,2.55603209]
[1760679775126,0.4009661,3912.5,3912.1,0.86019677]
[1760679777710,6.8709661,3912.5,3912.1,3.41636179]
[1760679777923,7.84138271,3912.5,3912.1,3.41636179]
[1760679778109,1.37138271,3912.5,3912.1,3.41636179]
[1760679778310,0.4009661,3912.5,3912.1,0.86019677]
[1760679778537,2.603,3912.6,3912.1,0.86019677]
[1760679778940,2.603,3912.6,3912.1,3.41634249]
[1760679779830,1.728,3912.9,3912.2,0.1671]
[1760679780046,1.728,3912.7,3912.3,2.55601214]
[1760679780243,1.728,3912.7,3912.2,0.1671]
[1760679780436,0.1272,3912.2,3912.1,0.86019677]
[1760679780631,2.7282,3912.2,3912.1,3.41636864]
[1760679781032,2.7282,3912.2,3912.1,0.86019677]
[1760679781936,7.7027,3912.2,3912.1,0.86019677]
[1760679782137,16.364204,3912.2,3912.1,0.86019677]
[1760679782340,9.71342757,3912.2,3912.1,0.86019677]
[1760679783058,35.0832971,3912.2,3912.1,0.86019677]
[1760679783254,24.8210261,3912.2,3912.1,0.86019677]
[1760679783633,18.4136561,3912.2,3912.1,0.86019677]
[1760679783835,32.3841355,3912.2,3912.1,0.68656559]
[1760679784160,17.09153091,3911.8,3911.7,0.002]
[1760679784360,14.88676053,3911.8,3911.7,0.002]
[1760679785121,19.80552853,3911.8,3911.7,0.002]
[1760679785325,19.54460853,3911.8,3911.7,0.002]
[1760679785527,19.54460853,3911.8,3910.6,2.55715218]
[1760679785528,4.28445327,3911.7,3910.6,2.55715218]
[1760679785727,4.28445327,3911.7,3910.2,0.6558]
[1760679785728,3.662294,3911.6,3910.7,2.55707913]
[1760679786058,1.728,3911.1,3910.2,0.6558]
[1760679786355,2.601,3911.0,3910.2,0.2162]
[1760679786555,2.601,3910.9,3910.2,0.2162]
[1760679786861,2.601,3910.8,3910.2,0.2162]
[1760679787024,2.601,3910.8,3908.4,2.55855088]
[1760679787025,13.3368794,3910.4,3907.9,0.4396]
[1760679787228,8.580305,3907.9,3905.9,0.6]
[1760679787428,12.02636,3907.7,3906.2,0.2242]
[1760679787655,3.434216,3907.7,3906.2,0.2242]
[1760679787855,2.359377,3907.6,3906.3,0.6138]
[1760679788058,0.2272,3906.4,3905.9,0.6]
[1760679788257,0.13133754,3907.7,3906.1,2.56008028]
[1760679788258,2.628,3906.3,3906.1,2.56008028]
[1760679788456,1.728,3907.5,3906.1,0.2241]
[1760679788777,0.2272,3907.7,3906.2,0.46520032]
[1760679788938,0.2272,3907.7,3906.4,2.55988746]
[1760679789144,0.2272,3907.7,3906.1,0.24970098]
[1760679789145,0.05,3908.7,3906.5,0.73954875]
[1760679789350,0.13359705,3908.8,3906.6,0.4396]
[1760679789554,0.13359705,3908.8,3907.1,0.6336]
[1760679789746,0.13359705,3908.8,3907.2,0.6067]
[1760679789747,2.55848893,3908.6,3907.2,0.6067]
[1760679789954,0.13359705,3908.8,3907.3,0.4396]
[1760679790179,2.638,3908.5,3907.6,0.6336]
[1760679790472,1.728,3908.4,3907.6,0.36323501]
[1760679790781,1.728,3908.4,3907.3,2.99886005]
[1760679791084,1.728,3908.2,3907.3,0.4396]
[1760679791373,1.728,3908.2,3907.2,0.1671]
[1760679791374,3.958939,3908.2,3907.2,0.1671]
[1760679791526,1.728,3908.1,3907.2,0.1671]
[1760679791731,0.13359705,3908.8,3907.3,2.58490517]
[1760679792056,2.638,3908.7,3907.4,2.55920208]
[1760679792227,2.638,3908.7,3907.6,2.55911556]
[1760679792228,2.638,3908.6,3907.6,2.55911556]
[1760679792426,0.4014227,3908.7,3907.6,3.19268678]
[1760679792674,1.728,3908.5,3907.6,2.55908678]
[1760679792826,0.4014227,3908.7,3907.8,0.6336]
[1760679793027,1.9552,3909.6,3908.0,0.6336]
[1760679793028,0.2272,3909.6,3908.0,0.6336]
[1760679793232,0.40136757,3909.4,3908.2,2.55867505]
[1760679793534,0.40136757,3909.4,3908.1,0.4396]
[1760679793747,1.728,3909.0,3908.1,0.4396]
[1760679794060,0.1728,3908.9,3908.1,2.99838056]
[1760679794256,5.749,3909.2,3908.1,2.99838056]
[1760679794464,5.749,3909.2,3908.1,0.4396]
[1760679794688,1.377,3909.3,3908.3,2.55864162]
[1760679794847,1.377,3909.3,3908.1,2.99832868]
[1760679795043,1.377,3909.3,3908.3,2.5586454]
[1760679795367,1.377,3909.3,3908.1,2.99834953]
[1760679795368,0.17783676,3909.2,3908.1,2.99834953]
[1760679795666,0.1272,3908.3,3908.2,2.99830233]
[1760679796033,0.1272,3908.6,3908.2,0.4396]
[1760679796227,0.1272,3908.6,3908.3,0.4396]
[1760679796428,0.1272,3907.9,3907.2,0.2943]
[1760679796677,0.1272,3907.9,3907.3,0.4396]
[1760679796847,0.1272,3907.5,3907.3,0.4396]
[1760679797161,0.1272,3907.5,3907.4,2.99884655]
[1760679797467,0.1272,3907.8,3907.4,2.99884495]
[1760679797671,0.1272,3907.8,3907.2,0.1671]
[1760679797871,0.1272,3907.6,3907.2,0.1671]
[1760679798035,0.1272,3907.6,3906.7,0.1671]
[1760679798036,0.1272,3907.2,3906.7,0.1671]
[1760679798236,0.1272,3907.0,3906.7,0.1671]
[1760679798542,2.635,3907.3,3906.7,0.1671]
[1760679798741,0.1092,3907.9,3906.8,0.4396]
[1760679798953,2.186,3908.2,3906.8,0.4396]
[1760679798954,0.1272,3907.1,3906.9,2.55956495]
[1760679799152,0.1272,3907.1,3907.0,2.55950857]
[1760679799677,0.1272,3907.1,3907.0,3.27176943]
[1760679800262,0.1272,3907.1,3907.0,2.99910857]
[1760679800659,0.1272,3907.1,3907.0,0.4396]
[1760679800847,0.1272,3907.1,3906.7,0.1671]
[1760679801170,0.1272,3906.8,3906.7,2.72680512]
[1760679801373,0.1272,3906.8,3906.7,0.1671]
[1760679801744,0.1272,3906.8,3906.7,2.72680512]
[1760679802368,0.1272,3906.8,3906.7,3.16300512]
[1760679802961,0.1272,3906.8,3906.7,3.82220217]
[1760679803154,1.728,3907.7,3906.8,0.6336]
[1760679803356,0.1272,3907.3,3906.9,2.55956543]
[1760679803577,0.1272,3907.3,3907.0,2.55949921]
[1760679803777,0.1272,3907.3,3906.9,2.55957325]
[1760679803979,1.728,3907.7,3906.7,0.1671]
[1760679804271,0.1272,3906.9,3906.7,0.1671]
[1760679804455,0.1272,3906.9,3906.4,0.1671]
[1760679804657,0.1272,3906.6,3906.5,2.55983203]
[1760679805666,0.1272,3906.6,3906.5,3.65523039]
[1760679805869,0.2272,3908.8,3907.3,2.55930073]
[1760679806067,0.2272,3908.8,3906.6,0.6336]
[1760679806068,0.1272,3907.4,3907.0,0.6336]
[1760679806281,0.1272,3907.8,3907.3,0.1671]
[1760679806456,0.1272,3907.8,3907.7,2.55905008]
[1760679806655,0.1272,3907.8,3907.6,2.55907645]
[1760679806849,0.1272,3907.8,3907.3,0.2943]
[1760679807080,1.642,3908.3,3907.4,2.55924655]
[1760679807269,0.1272,3907.6,3907.5,2.55918106]
[1760679808059,0.1272,3907.6,3907.3,2.72638444]
[1760679808060,0.1272,3907.6,3907.3,0.1671]
[1760679808260,0.1039,3907.9,3907.1,2.55940553]
[1760679808479,0.1039,3907.9,3906.4,0.1671]
[1760679808686,3.815894,3907.8,3906.7,2.55969392]
[1760679808870,0.3919794,3907.7,3906.6,2.55977064]
[1760679809193,2.64,3907.6,3906.9,2.55957408]
[1760679809351,1.728,3908.1,3907.3,2.55928705]
[1760679809352,2.64,3907.5,3907.3,2.55928705]
[1760679809686,0.002,3908.6,3907.4,0.6336]
[1760679809687,0.40145379,3908.2,3907.4,0.6336]
[1760679809889,2.12945379,3908.2,3907.4,0.4362]
[1760679810104,1.728,3908.2,3907.4,0.4362]
[1760679810476,1.728,3908.2,3907.7,2.55905008]
[1760679810677,1.728,3908.2,3907.8,2.55898098]
[1760679810984,1.728,3908.2,3907.2,2.559335]
[1760679810985,0.1109,3907.9,3907.2,2.559335]
[1760679811198,0.1109,3907.9,3907.4,2.55921285]
[1760679811505,0.4528,3907.8,3907.3,2.55928299]
[1760679811800,0.1109,3907.9,3907.4,2.55922726]
[1760679812001,8.198,3908.2,3907.8,2.5589237]
[1760679812172,2.64,3908.1,3908.0,2.55883829]
[1760679812379,0.002,3908.6,3908.3,2.55865418]
[1760679812578,2.64,3908.5,3908.3,2.55865418]
[1760679812779,2.64,3908.5,3907.9,2.55890698]
[1760679812980,2.64,3908.5,3908.1,2.55878815]
[1760679813179,2.64,3908.5,3908.1,2.55873213]
[1760679813580,2.64,3908.5,3907.9,2.55891113]
[1760679814010,2.64,3908.5,3908.2,2.5587141]
[1760679814191,2.64,3908.5,3908.0,2.5588496]
[1760679814192,2.64,3908.5,3908.3,2.5586473]
[1760679814392,2.639,3908.4,3908.3,2.5586473]
[1760679814703,2.639,3908.4,3908.3,2.55865721]
[1760679815100,0.002,3908.6,3908.1,2.55877849]
[1760679815409,2.639,3908.5,3908.2,2.55870522]
[1760679815610,0.002,3908.6,3907.7,0.4362]
[1760679815913,2.638,3908.5,3908.1,2.55878794]
[1760679816109,2.638,3908.5,3908.2,2.55872051]
[1760679816310,2.638,3908.5,3908.3,2.55865001]
[1760679816515,0.002,3908.6,3907.8,0.6336]
[1760679816719,2.638,3908.5,3908.4,2.5585734]
[1760679816885,0.002,3908.6,3908.5,2.55852628]
[1760679817419,2.639,3908.6,3908.5,2.55852628]
[1760679818213,0.002,3908.6,3908.5,2.55852628]
[1760679818539,0.002,3908.6,3908.5,2.99472628]
[1760679818832,0.002,3908.6,3908.5,3.55262124]
[1760679819004,0.002,3908.6,3908.5,2.99472628]
[1760679820801,0.002,3908.6,3908.5,3.62832628]
[1760679823325,0.002,3908.6,3908.5,3.65391154]
[1760679824127,0.002,3908.6,3908.5,3.62832628]
[1760679824427,0.002,3908.6,3908.5,3.65391154]
[1760679824629,0.002,3908.6,3908.5,4.55128643]
[1760679829737,0.002,3908.6,3908.5,4.11508643]
[1760679829933,0.002,3908.6,3908.5,2.55852628]
[1760679831668,0.432,3908.6,3908.5,2.55852628]
[1760679831824,0.432,3908.6,3907.7,2.55898978]
[1760679832026,0.43,3908.5,3908.3,2.55860114]
[1760679832321,0.43,3908.5,3906.9,1.728]
[1760679832322,0.43,3908.4,3906.4,2.72697285]
[1760679832626,0.43,3908.4,3908.2,2.55865939]
[1760679832840,0.002,3908.6,3908.2,2.55865939]
[1760679832841,0.43,3908.3,3908.2,2.55865939]
[1760679833020,0.43,3908.5,3908.2,2.55866076]
[1760679833233,0.43,3908.4,3907.0,2.632]
[1760679833432,0.43,3908.4,3908.0,2.55881246]
[1760679833637,0.43,3908.3,3908.0,2.55881246]
[1760679833854,0.43,3908.2,3907.3,0.6336]
[1760679834148,0.43,3908.2,3908.0,2.55885363]
[1760679834149,0.43,3908.1,3908.0,2.55885363]
[1760679834347,1.728,3908.2,3908.0,2.55879443]
[1760679834548,0.432,3908.6,3907.4,0.6336]
[1760679834856,2.632,3908.4,3908.3,2.55865721]
[1760679835017,2.632,3908.4,3908.2,2.55869723]
[1760679835223,2.632,3908.4,3908.3,2.55865721]
[1760679835651,3.062,3908.4,3908.3,2.55865721]
[1760679836456,1.73,3908.6,3908.5,2.55852628]
[1760679836665,1.73,3908.6,3907.8,2.55898459]
[1760679836666,1.73,3908.6,3907.8,0.6336]
[1760679836872,2.16,3908.6,3907.8,3.19257972]
[1760679837026,0.002,3908.6,3908.5,2.55852628]
[1760679837520,0.432,3908.6,3908.4,2.55856943]
[1760679837728,0.43,3908.5,3908.4,2.55856943]
[1760679839125,0.43,3908.5,3907.9,2.55888446]
[1760679839355,0.43,3908.5,3908.0,2.55882768]
[1760679839559,0.43,3908.4,3908.1,2.55874666]
[1760679839868,0.43,3908.3,3908.0,2.55884438]
[1760679840082,0.43,3908.3,3907.6,2.55905582]
[1760679840288,0.002,3908.6,3907.5,0.6336]
[1760679840583,0.4315,3908.2,3908.0,2.5588464]
[1760679840876,0.4315,3908.1,3908.0,2.5588464]
[1760679841087,0.002,3908.6,3907.6,2.55910736]
[1760679841266,0.002,3908.6,3908.2,2.5587004]
[1760679841458,0.4315,3908.5,3908.2,2.5587004]
[1760679841653,0.1272,3908.2,3907.5,3.19278106]
[1760679841868,0.002,3908.6,3908.1,2.55878815]
[1760679842192,0.002,3908.6,3907.5,0.6336]
[1760679842193,0.002,3908.6,3908.5,2.55852628]
[1760679842782,0.002,3908.6,3908.5,3.39203172]
[1760679842982,0.002,3908.6,3908.5,2.55852628]
[1760679843388,0.002,3908.6,3908.5,3.62342628]
[1760679843883,0.002,3908.6,3908.5,3.19212628]
[1760679845197,0.002,3908.6,3908.5,3.64901154]
[1760679845850,0.002,3908.6,3908.5,3.62342628]
[1760679846358,0.002,3908.6,3908.5,5.35142628]
[1760679848197,0.002,3909.0,3908.5,5.35142628]
[1760679848198,1e-08,3909.0,3908.9,3.19186447]
[1760679848407,1e-08,3909.0,3908.9,3.21744711]
[1760679848613,1e-08,3909.0,3908.9,19.69654598]
[1760679848763,1e-08,3909.0,3908.9,19.67096334]
[1760679851893,0.1143,3911.0,3910.9,2.55695619]
[1760679852266,0.5533,3911.0,3910.9,2.55695619]
[1760679852669,0.1143,3911.0,3910.9,2.55695619]
[1760679853296,0.1143,3911.0,3910.2,0.6336]
[1760679853605,0.1143,3911.0,3909.7,1.728]
[1760679853609,1.728,3910.1,3905.9,0.001]
[1760679853769,14.95339887,3908.0,3905.9,0.001]
[1760679853963,0.6336,3907.8,3906.3,2.56095239]
[1760679854161,1.728,3907.5,3906.3,0.001]
[1760679854378,1.3774794,3907.4,3906.3,0.001]
[1760679854575,0.1904,3906.4,3906.3,0.001]
[1760679855170,0.3176,3906.4,3906.3,0.001]
[1760679855570,0.3176,3906.4,3906.3,2.56096723]